Cogmind - Beta 12 X6 @@@ ROGUE MODE // 2023.02.18 @ 18:26:21 Player: Plexion Result: Self-destructed Performance ------------- Evolutions (3) 1500 Regions Visited (10) 2000 Robots Destroyed (137) 685 Value Destroyed (4527) 4527 Prototype IDs (6) 120 Alien Tech Used (0) 0 Bonus (1488) 1488 TOTAL SCORE: 10320 Bonus ------- High Alert Combat Kills 692 Follower Combat Kills 183 Entered Garrisons 200 Used RIF Installer 500 Friendly Fire -87 Cogmind --------- Core Integrity 523/700 Matter 90/300 Energy 290/290 System Corruption 11% Temperature Cool (73) Movement Treading (240) Ox1 Location -7/Factory Parts ------- > --- POWER (1) -------- Reinforced Deuterium Engine > --- PROPULSION (4) --- Light Treads Light Treads > --- UTILITY (6) ------ High-capacity Storage Unit Light Armor Plating Hardened Medium Armor Plating Relay Coupler [Grunt] (21) Relay Coupler [Heavy] (5) > --- WEAPON (2) ------- Gauss Rifle Precision Assault Rifle > --- INVENTORY (20) --- Improved Ion Engine Light Angular Momentum Engine Compact Wheel Advanced Weapon Cycler Relay Coupler [NC] (38) Relay Coupler [NC] (26) Relay Coupler [Sentry] (31) Relay Coupler [Hunter] (16) Gauss Rifle Gauss Rifle Precision Assault Rifle Improved Grenade Launcher Remote Datajack Peak State ------------ > --- POWER ------------ Light Nuclear Core > --- PROPULSION ------- Light Treads Light Treads Light Treads Light Treads > --- UTILITY ---------- Experimental Heat Sink High-capacity Storage Unit Hardened Medium Armor Plating Hardened Medium Armor Plating > --- WEAPON ----------- 8R-AWN's Boregun 8R-AWN's Boregun > --- INVENTORY -------- Light Angular Momentum Engine Light Treads Light Treads Light Treads Light Treads Light Treads Light Treads Compact Wheel Machine Analyzer Experimental Targeting Computer Advanced Weapon Cycler Light Armor Plating Hardened Medium Armor Plating 8R-AWN's Armor/EX AS-neutralizer No. 17b Gauss Rifle Gauss Rifle Gauss Rifle [Rating: 49] Favorites ----------- Power Light Ion Engine Engine Light Ion Engine Power Core Light Nuclear Core Propulsion Light Treads Treads Light Treads Wheel Compact Wheel Utility High-capacity Storage Unit Device Experimental Heat Sink Storage High-capacity Storage Unit Processor Targeting Computer Hackware Relay Coupler [Grunt] Protection Hardened Medium Armor Plating Weapon 8R-AWN's Boregun Ballistic Gun 8R-AWN's Boregun Ballistic Cannon Light Cannon Launcher Improved Grenade Launcher Special Weapon Remote Datajack Build | -11 -10 -10 -9 -9 -9 -8 -8 -8 -8 -7 ------- Run | Jun Mat Min Mat Min Exi Min Mat Sto Gar Fac Slots Evolved 6 | . . . 2 . . . 2 . . 2 Power . | . . . . . . . . . . . Propulsion 2 | . . . . . . . 2 . . . Utility 4 | . . . 2 . . . . . . 2 Weapon . | . . . . . . . . . . . Parts Attached 114 | 5 5 6 11 9 9 2 10 26 5 26 Power 9 | 1 . 1 1 . 1 1 . 2 1 1 Engine 8 | 1 . 1 1 . 1 1 . 1 1 1 Core 1 | . . . . . . . . 1 . . Reactor . | . . . . . . . . . . . Propulsion 32 | 1 1 2 4 2 2 . 3 11 2 4 Treads 30 | 1 1 2 4 2 2 . 2 10 2 4 Leg . | . . . . . . . . . . . Wheel 2 | . . . . . . . 1 1 . . Hover . | . . . . . . . . . . . Flight . | . . . . . . . . . . . Utility 36 | 1 3 1 4 5 2 . 4 7 1 8 Device 6 | . 1 . . 2 1 . 1 . . 1 Storage 3 | 1 2 . . . . . . . . . Processor 3 | . . . 1 . . . . . . 2 Hackware 3 | . . . . . . . . . . 3 Protection 21 | . . 1 3 3 1 . 3 7 1 2 Artifact . | . . . . . . . . . . . Weapon 37 | 2 1 2 2 2 4 1 3 6 1 13 Energy Gun . | . . . . . . . . . . . Energy Cannon . | . . . . . . . . . . . Ballistic Gun 28 | 2 . 2 2 1 3 1 3 5 1 8 Ballistic Cannon 1 | . 1 . . . . . . . . . Launcher 4 | . . . . . 1 . . 1 . 2 Special Weapon 4 | . . . . 1 . . . . . 3 Impact Weapon . | . . . . . . . . . . . Slashing Weapon . | . . . . . . . . . . . Piercing Weapon . | . . . . . . . . . . . Special Melee Weapon . | . . . . . . . . . . . Unidentified Prototypes 6 | . . . 1 2 1 . . . . 2 Parts Lost 31 | . 2 1 1 3 5 . 1 2 5 11 Power 5 | . 1 . 1 . 1 . . 1 1 . Propulsion 11 | . . . . . 2 . 1 . 2 6 Utility 7 | . . . . 2 . . . 1 1 3 Weapon 8 | . 1 1 . 1 2 . . . 1 2 Highest Loss Streak 5 | . 1 2 1 1 5 . 1 2 2 4 To Critical Strikes . | . . . . . . . . . . . Average Slot Usage (%) 96 | . 88 97 99 99 95 100 90 97 99 94 Engine 8 | . 14 12 10 11 9 11 9 4 3 7 Core 1 | . . . . . . . . 3 5 . Treads 27 | . 24 28 22 22 22 22 26 34 36 28 Device 5 | . 6 2 . 7 11 11 6 9 9 2 Storage 10 | . 14 14 11 11 11 11 9 9 9 7 Processor 4 | . . . 11 11 11 11 9 . . 9 Protection 13 | . . 11 22 14 8 11 11 17 17 14 Ballistic Gun 18 | . 25 14 20 21 21 22 18 17 18 8 Ballistic Cannon 2 | . 2 14 1 . . . . . . . Naked Turns . | . . . . . . . . . . . Heaviest Build 78 | 14 51 52 62 62 57 62 75 73 75 78 Greatest Support 80 | 20 40 40 40 40 40 40 60 80 80 80 Greatest Overweight (x) 4 | 3 2 1 1 1 1 1 4 4 . 1 Average Overweight (x) . | . . 1 1 1 1 1 1 . . . Largest Inventory Capacity 20 | 8 20 20 20 20 20 20 20 20 20 20 Average Capacity 19 | 7 17 20 20 20 20 20 20 20 20 20 Most Carried 20 | 3 7 11 20 20 20 16 17 20 20 20 Average Carried 14 | 2 5 10 15 19 15 15 12 18 17 17 Final Capacity 20 | 8 20 20 20 20 20 20 20 20 20 20 Final Carried 20 | 3 6 11 20 20 15 16 13 20 20 13 Class Distribution -------------------- 63% | Scavenger-Mutant 31% | Mutant 5% | Bothacker-Mutant Dominant Class ---------------- Mutant | -10/Materials Mutant | -10/Mines Scavenger-Mutant | -9/Materials Mutant | -9/Mines Scavenger-Mutant | -9/Exiles Scavenger-Mutant | -8/Mines Scavenger-Mutant | -8/Materials Scavenger-Mutant | -8/Storage Scavenger-Mutant | -8/Garrison Bothacker-Mutant | -7/Factory Resources | -11 -10 -10 -9 -9 -9 -8 -8 -8 -8 -7 ----------- Run | Jun Mat Min Mat Min Exi Min Mat Sto Gar Fac Matter Collected 4470 | 171 276 230 437 285 46 274 297 1101 943 410 Remotely . | . . . . . . . . . . . Salvage Created 5935 | . 276 304 799 168 64 274 354 1725 1589 382 Parts 373 | . 26 14 63 18 . 13 23 92 101 23 Haulers Intercepted 8 | . . . 3 . . . . 5 . . Recyclers Shooed 4 | . 2 1 1 . . . . . . . Parts Field Recycled . | . . . . . . . . . . . Retrieved Matter . | . . . . . . . . . . . Parts Self-Destructed . | . . . . . . . . . . . Prevented . | . . . . . . . . . . . Kills | -11 -10 -10 -9 -9 -9 -8 -8 -8 -8 -7 ------- Run | Jun Mat Min Mat Min Exi Min Mat Sto Gar Fac Combat Hostiles Destroyed 115 | . 7 3 18 4 6 4 7 22 32 12 Guns 102 | . 7 1 18 4 4 4 7 22 32 3 Cannons 2 | . . 2 . . . . . . . . AOE 11 | . . . . . 2 . . . . 9 Classes Destroyed 15 | . 4 2 4 . 1 . . 1 3 . Worker 6 | . . . 3 . . . . 2 . 1 Builder 3 | . 1 1 . . . 1 . . . . Tunneler 2 | . . 1 . . . . 1 . . . Hauler 8 | . . . 3 . . . . 5 . . Recycler 5 | . . 2 . . . . 1 1 . 1 Mechanic 1 | . 1 . . . . . . . . . Watcher 3 | . . . 2 . . . . 1 . . Swarmer 27 | . 3 . 8 3 . . 3 . 6 4 Grunt 55 | . 4 3 6 . . 4 3 13 15 7 Brawler 2 | . . . . . . . . . 1 1 Duelist 1 | . . . . . . . . 1 . . Sentry 19 | . . . 4 . . . 1 8 6 . Hunter 1 | . . . . . . . . . 1 . Programmer 3 | . . . . . . . . . 3 . Assembled 6 | . . . . . 6 . . . . . Best Kill Streak 10 | . 3 2 5 3 5 4 3 6 10 7 Combat Bots Only 10 | . 3 2 5 3 5 3 3 5 10 5 Max Kills in Single Turn 2 | . 1 1 2 2 1 2 1 2 2 2 Gunslinging 1 | . . . 1 1 . . . . 1 . Exploded 2 | . . . . . 1 . . . . 2 Melee . | . . . . . . . . . . . Uniques/NPCs Destroyed 1 | . . . . 1 . . . . . . 8R-AWN (-9/Mines) Combat | -11 -10 -10 -9 -9 -9 -8 -8 -8 -8 -7 -------- Run | Jun Mat Min Mat Min Exi Min Mat Sto Gar Fac Damage Taken 6334 | . 550 253 391 653 803 144 416 922 1173 1029 Core 786 | . 41 12 30 148 152 . 37 94 95 177 Absorbed by Shields . | . . . . . . . . . . . Redirected to Shielding 13 | . . . . 1 12 . . . . . Core Remaining (%) 63 | 100 . 78 . . . 17 . . 58 . Volleys Fired 408 | . 32 25 51 40 22 10 22 77 83 46 Largest 2 | . 2 2 2 2 2 2 2 2 2 2 Hottest 60 | . 40 58 58 46 46 60 60 60 60 58 Shots Fired 756 | . 64 50 102 80 39 20 44 144 157 56 Gun 692 | . 64 25 97 70 36 20 44 144 157 35 Cannon 30 | . . 25 5 . . . . . . . Launcher 17 | . . . . . 3 . . . . 14 Special 17 | . . . . 10 . . . . . 7 Kinetic 722 | . 64 50 102 70 36 20 44 144 157 35 Thermal 10 | . . . . 10 . . . . . . Explosive 17 | . . . . . 3 . . . . 14 Electromagnetic . | . . . . . . . . . . . Robot Hit Streak 25 | . 6 15 15 25 10 6 6 6 13 19 Robot Miss Streak 6 | . 6 4 3 1 3 2 2 4 5 3 Penetration Max 2 | . . . . . . 1 1 2 2 2 Secondary Targets 12 | . 1 . 1 1 2 . . 1 6 . Max Gunslinging Chain 1 | . 1 . 1 1 1 . . 1 1 . Shots Hit Robots 447 | . 31 35 70 70 21 13 27 69 82 29 Core Hits 216 | . 15 11 32 14 12 6 14 41 43 28 Critical Kills 44 | . . . . . . 4 . 18 21 1 Critical Parts Destroyed 42 | . . . . . . 4 . 15 23 . Critical Strikes 89 | . . . . 1 . 8 . 33 46 1 Destroy 88 | . . . . . . 8 . 33 46 1 Sever 1 | . . . . 1 . . . . . . Melee Attacks . | . . . . . . . . . . . Impact . | . . . . . . . . . . . Slashing . | . . . . . . . . . . . Piercing . | . . . . . . . . . . . Sneak Attacks . | . . . . . . . . . . . Combat Hostiles . | . . . . . . . . . . . Follow-up Attacks . | . . . . . . . . . . . Damage Inflicted 9011 | . 430 505 1124 966 391 304 560 1503 1794 1434 Guns 7556 | . 425 171 1087 959 287 304 560 1493 1794 476 Cannons 371 | . . 334 37 . . . . . . . Explosions 1070 | . . . . . 104 . . 8 . 958 Melee . | . . . . . . . . . . . Ramming 7 | . 5 . . . . . . 2 . . Kinetic 7927 | . 425 505 1124 959 287 304 560 1493 1794 476 Thermal 7 | . . . . 7 . . . . . . Explosive 1070 | . . . . . 104 . . 8 . 958 Electromagnetic . | . . . . . . . . . . . Impact . | . . . . . . . . . . . Slashing . | . . . . . . . . . . . Piercing . | . . . . . . . . . . . Highest Corruption 11 | . . . . . . . . . 2 11 Average Corruption 2 | . . . . . . . . . 1 8 Corruption Purged . | . . . . . . . . . . . Corruption Blocked . | . . . . . . . . . . . Effects 27 | . . . . . . . . . 13 14 Message Errors 9 | . . . . . . . . . 7 2 Matter Fused 5 | . . . . . . . . . 3 2 Heat Flow Errors 3 | . . . . . . . . . 1 2 Energy Discharges 5 | . . . . . . . . . 1 4 Parts Rejected 1 | . . . . . . . . . . 1 Data Loss (minor) 2 | . . . . . . . . . 1 1 Alerts 2 | . . . . . . . . . . 2 Overload Shots . | . . . . . . . . . . . Overflow Damage 23 | . . 8 6 . . . . . . 9 Projectiles 14 | . . 8 6 . . . . . . . Explosions 9 | . . . . . . . . . . 9 Melee . | . . . . . . . . . . . Knockbacks 4 | . . 4 . . . . . . . . Impact . | . . . . . . . . . . . Kinetic 4 | . . 4 . . . . . . . . Secondary . | . . . . . . . . . . . Self-Inflicted Damage . | . . . . . . . . . . . Shots . | . . . . . . . . . . . Rammed 2 | . 1 . . . . . . 1 . . Targets Rammed 2 | . 1 . . . . . . 1 . . Kicked . | . . . . . . . . . . . Crushed . | . . . . . . . . . . . Highest Temperature 336 | . 20 42 51 39 . . 336 7 214 173 Average Temperature 43 | . 5 8 12 17 . . 180 7 61 55 Received Heat Transfer 2282 | . 213 138 123 . 80 81 198 531 576 342 Effects 2 | . . . . . . . 2 . . . Interference 1 | . . . . . . . 1 . . . Short Circuit 1 | . . . . . . . 1 . . . Siege Activations . | . . . . . . . . . . . Robots Corrupted . | . . . . . . . . . . . Combat Hostiles . | . . . . . . . . . . . Parts Fried . | . . . . . . . . . . . Impact Corruptions . | . . . . . . . . . . . Robots Melted . | . . . . . . . . . . . Combat Hostiles . | . . . . . . . . . . . Parts Melted . | . . . . . . . . . . . Heat Transferred 63 | . . . . 63 . . . . . . Parts Sabotaged . | . . . . . . . . . . . Parts Stolen . | . . . . . . . . . . . Parts Stripped . | . . . . . . . . . . . Power Chain Reactions . | . . . . . . . . . . . Missiles Intercepted . | . . . . . . . . . . . Alert | -11 -10 -10 -9 -9 -9 -8 -8 -8 -8 -7 ------- Run | Jun Mat Min Mat Min Exi Min Mat Sto Gar Fac Peak Influence 1527 | . 201 80 311 77 . 155 141 516 1527 816 Initial 801 | . . 7 . 77 . . 60 48 284 801 Average 308 | . 65 28 161 40 . 123 86 308 1007 324 Maximum Alert Level 4 | . 1 . 1 . . . . 2 4 3 Low Security (%) 57 | 100 86 100 60 100 . 100 100 18 . 43 Level 1 17 | . 13 . 39 . . . . 54 5 24 Level 2 6 | . . . . . . . . 27 7 17 Level 3 11 | . . . . . . . . . 54 14 Level 4 6 | . . . . . . . . . 32 . Level 5 . | . . . . . . . . . . . High Security . | . . . . . . . . . . . Max Security . | . . . . . . . . . . . Squads Dispatched 8 | . 1 . 3 . . . . . . 4 Investigation 3 | . 1 . 1 . . . . . . 1 Extermination 1 | . . . . . . . . . . 1 Reinforcement 4 | . . . 2 . . . . . . 2 Assault . | . . . . . . . . . . . Garrison . | . . . . . . . . . . . Intercept . | . . . . . . . . . . . Searches Triggered . | . . . . . . . . . . . Construction Impeded . | . . . . . . . . . . . Haulers Reinforced . | . . . . . . . . . . . Active Scanning Responses . | . . . . . . . . . . . Cargo Convoy Interrupts . | . . . . . . . . . . . Stealth | -11 -10 -10 -9 -9 -9 -8 -8 -8 -8 -7 --------- Run | Jun Mat Min Mat Min Exi Min Mat Sto Gar Fac Distress Signals 5 | . . . 1 . . . 1 2 . 1 Communications Jammed . | . . . . . . . . . . . Distress Signals . | . . . . . . . . . . . Times Spotted 170 | . 16 5 22 4 7 7 10 26 48 25 Peak Tracking Total 8 | . 4 2 5 3 8 4 4 4 5 7 Tactical Retreats 18 | . . . . . 1 2 . 2 13 . Traps | -11 -10 -10 -9 -9 -9 -8 -8 -8 -8 -7 ------- Run | Jun Mat Min Mat Min Exi Min Mat Sto Gar Fac Traps Triggered 11 | . 2 . 1 . . . . 4 2 2 Indirectly . | . . . . . . . . . . . Trap Hack Attempts . | . . . . . . . . . . . Triggered . | . . . . . . . . . . . Disarmed . | . . . . . . . . . . . Reprogrammed . | . . . . . . . . . . . Reused . | . . . . . . . . . . . Traps Extracted . | . . . . . . . . . . . Installed . | . . . . . . . . . . . Triggered . | . . . . . . . . . . . Machines | -11 -10 -10 -9 -9 -9 -8 -8 -8 -8 -7 ---------- Run | Jun Mat Min Mat Min Exi Min Mat Sto Gar Fac Machines Disabled 14 | . . . 2 . . . . 6 2 4 Max in Single Turn 2 | . . . 1 . . . . 1 1 2 Garrison Relay 1 | . . . . . . . . . 1 . Machines Repaired . | . . . . . . . . . . . Machines Sabotaged . | . . . . . . . . . . . Overloaded Fab Kills . | . . . . . . . . . . . Hacking | -11 -10 -10 -9 -9 -9 -8 -8 -8 -8 -7 --------- Run | Jun Mat Min Mat Min Exi Min Mat Sto Gar Fac Machines Accessed 30 | . 4 . 4 . . . 1 13 3 5 Terminals 28 | . 3 . 4 . . . 1 12 3 5 Fabricators . | . . . . . . . . . . . Repair Stations . | . . . . . . . . . . . Recycling Units 1 | . 1 . . . . . . . . . Scanalyzers . | . . . . . . . . . . . Garrison Access 1 | . . . . . . . . 1 . . Total Hacks 71 | . 11 . 8 . . . 4 32 5 11 Successful 36 | . 8 . 4 . . . 3 15 2 4 Failed 33 | . 2 . 4 . . . . 17 3 7 Catastrophic 11 | . . . 1 . . . . 4 2 4 Database Lockouts 2 | . 1 . . . . . 1 . . . Manual 51 | . 12 . 8 . 1 . 4 24 . 2 Terminals 69 | . 10 . 8 . . . 4 31 5 11 Fabricators . | . . . . . . . . . . . Repair Stations . | . . . . . . . . . . . Recycling Units 1 | . 1 . . . . . . . . . Scanalyzers . | . . . . . . . . . . . Garrison Access 1 | . . . . . . . . 1 . . Terminal Hacks 21 | . 3 . 3 . . . 2 8 2 3 Robot Analysis 6 | . 2 . 2 . . . 1 . . 1 Open Door 5 | . . . . . . . . 4 1 . Terminal Index 1 | . . . . . . . . 1 . . Unreport Threat 3 | . . . . . . . . 1 . 2 Hauler Manifests 1 | . . . 1 . . . . . . . Zone Layout 4 | . 1 . . . . . 1 2 . . Garrison Registry 1 | . . . . . . . . . 1 . Fabricator Hacks . | . . . . . . . . . . . Repair Station Hacks . | . . . . . . . . . . . Recycling Unit Hacks . | . . . . . . . . . . . Scanalyzer . | . . . . . . . . . . . Garrison Access Hacks 1 | . . . . . . . . 1 . . Unlock Access 1 | . . . . . . . . 1 . . Unauthorized Hacks 14 | . 5 . 1 . . . 1 6 . 1 Terminals 13 | . 4 . 1 . . . 1 6 . 1 Track 6 | . 1 . 1 . . . 1 3 . . Botnet 4 | . 1 . . . . . . 2 . 1 Disrupt 1 | . 1 . . . . . . . . . Operators 2 | . 1 . . . . . . 1 . . Fabricators . | . . . . . . . . . . . Repair Stations . | . . . . . . . . . . . Recycling Units 1 | . 1 . . . . . . . . . Tunnel 1 | . 1 . . . . . . . . . Scanalyzers . | . . . . . . . . . . . Garrison Access . | . . . . . . . . . . . Data Cores Recovered . | . . . . . . . . . . . Used . | . . . . . . . . . . . Hacking Detections 24 | . 3 . 4 . . . 1 8 3 5 Full Trace Events 2 | . . . . . . . . . 2 . Feedback Events 1 | . . . . . . . . . 1 . Corruption 1 | . . . . . . . . . 1 . Feedback Blocked . | . . . . . . . . . . . Robot Schematics Acquired . | . . . . . . . . . . . Robots Built . | . . . . . . . . . . . Authchips . | . . . . . . . . . . . Time . | . . . . . . . . . . . Total Robot Build Rating . | . . . . . . . . . . . Part Schematics Acquired . | . . . . . . . . . . . Parts Built . | . . . . . . . . . . . Authchips . | . . . . . . . . . . . Time . | . . . . . . . . . . . Total Part Build Rating . | . . . . . . . . . . . Parts Repaired . | . . . . . . . . . . . Time . | . . . . . . . . . . . Parts Recycled . | . . . . . . . . . . . Recycled Matter . | . . . . . . . . . . . Retrieved Matter . | . . . . . . . . . . . Retrieved Components . | . . . . . . . . . . . Parts Scanalyzed . | . . . . . . . . . . . Part Schematics Acquired . | . . . . . . . . . . . Parts Damaged . | . . . . . . . . . . . Bothacking | -11 -10 -10 -9 -9 -9 -8 -8 -8 -8 -7 ------------ Run | Jun Mat Min Mat Min Exi Min Mat Sto Gar Fac Used RIF Installer 1 | . . . . . . . . . 1 . Robots Hacked 5 | . . . . . . . . . . 5 Non-combat 1 | . . . . . . . . . . 1 Combat 4 | . . . . . . . . . . 4 Robot Hacks Applied 6 | . . . . . . . . . . 6 purge_threat 2 | . . . . . . . . . . 2 disable_weapons 1 | . . . . . . . . . . 1 overwrite_iff 2 | . . . . . . . . . . 2 formatsys_high 1 | . . . . . . . . . . 1 Relay Couplers Released 5 | . . . . . . . . . 5 . Machine Destruction 5 | . . . . . . . . . 5 . Attached 3 | . . . . . . . . . . 3 Fabnet Peak Effective % . | . . . . . . . . . . . Robots Rewired 2 | . . . . . . . . . 2 . Allies Hacked . | . . . . . . . . . . . Hacks Repelled . | . . . . . . . . . . . Allies | -11 -10 -10 -9 -9 -9 -8 -8 -8 -8 -7 -------- Run | Jun Mat Min Mat Min Exi Min Mat Sto Gar Fac Total Allies 5 | . . . . . . . . . 2 3 Largest Group 2 | . . . . . . . . . 2 1 Highest-Rated Group 90 | . . . . . . . . . 62 90 Highest-Rated Ally 90 | . . . . . . . . . 31 90 Total Orders 1 | . . . . . . . . . 1 . STAY 1 | . . . . . . . . . 1 . Ally Attacks 19 | . . . . . . . . . 5 14 Total Damage 593 | . . . . . . . . . 105 488 Kills 5 | . . . . . . . . . 2 3 Allies Corrupted . | . . . . . . . . . . . Allies Melted . | . . . . . . . . . . . Intel | -11 -10 -10 -9 -9 -9 -8 -8 -8 -8 -7 ------- Run | Jun Mat Min Mat Min Exi Min Mat Sto Gar Fac Robot Analysis Total 6 | . 2 . 2 . . . 1 . . 1 Derelict Logs Recovered 3 | . . 2 . 1 . . . . . . Drone Launches . | . . . . . . . . . . . Drone Recoveries . | . . . . . . . . . . . Exploration | -11 -10 -10 -9 -9 -9 -8 -8 -8 -8 -7 ------------- Run | Jun Mat Min Mat Min Exi Min Mat Sto Gar Fac Turns Passed 9773 | 71 1074 1262 1310 825 657 238 559 1181 1718 878 Spaces Moved 4100 | 41 435 488 447 277 243 84 198 545 898 444 Core 10 | 10 . . . . . . . . . . Treads 4006 | 31 435 488 447 277 243 84 180 479 898 444 Legs . | . . . . . . . . . . . Wheels 84 | . . . . . . . 18 66 . . Hover . | . . . . . . . . . . . Flight . | . . . . . . . . . . . Fastest Speed 50 | 50 160 240 240 240 240 240 160 145 160 160 Average Speed 200 | 150 220 240 240 240 240 240 224 160 160 166 Slowest Speed 320 | 200 320 240 240 240 240 240 240 240 160 240 Overloaded Moves . | . . . . . . . . . . . Propulsion Burnouts . | . . . . . . . . . . . Robots Hopped . | . . . . . . . . . . . Cave-ins Triggered . | . . . . . . . . . . . Exploration Rate (%) 47 | 3 71 89 37 49 47 26 27 79 71 18 Regions Visited 10 Branch Regions 5 Pre-discovered Areas 3 | . 1 2 . . . . . . . . Known Exits Taken 2 | . . . . . . . 1 1 . . Unknown Exits Taken 7 | 1 1 1 1 1 1 1 . . . . Scrap Searched 1 | . . 1 . . . . . . . . Spaces Dug 17 | . . . . . . . . 2 6 9 Terrain Destroyed 163 | . . . . . 14 15 2 62 33 37 Melee . | . . . . . . . . . . . Projectile 88 | . . . . . . 15 1 44 26 2 AOE 61 | . . . . . 14 . . 15 . 32 Terrain Rammed . | . . . . . . . . . . . Walls Destroyed . | . . . . . . . . . . . Machines Disabled . | . . . . . . . . . . . Actions | -11 -10 -10 -9 -9 -9 -8 -8 -8 -8 -7 --------- Run | Jun Mat Min Mat Min Exi Min Mat Sto Gar Fac Total 4902 | 48 487 531 583 351 281 100 271 704 1023 523 Wait 170 | . 6 7 57 9 6 5 25 40 15 . Move 4091 | 40 434 487 446 276 242 83 197 545 897 444 Hop . | . . . . . . . . . . . Pick Up 50 | 3 5 5 10 7 1 . 3 5 8 3 Fast Attach 31 | 5 3 . 2 2 . . 6 10 1 2 Attach 38 | . 2 3 2 4 6 . 2 4 4 11 Detach 15 | . 2 1 1 2 . . 5 2 . 2 Swap 47 | . . 3 8 3 3 2 2 12 . 14 Drop 37 | . 2 . 6 8 1 . 9 8 2 1 Fire 408 | . 32 25 51 40 22 10 22 77 83 46 Melee . | . . . . . . . . . . . Ram . | . . . . . . . . . . . Kick . | . . . . . . . . . . . Crush 2 | . 1 . . . . . . 1 . . Escape Stasis . | . . . . . . . . . . . Rewire 13 | . . . . . . . . . 13 . Trap . | . . . . . . . . . . . Miscellaneous . | . . . . . . . . . . . Route ------- -11/Junkyard -10/Materials (discovered 3 exits: *Mat x2 / [*Min]) -10/Mines (discovered 2 exits: *Mat x2) -9/Materials (discovered 2 exits: *Mat / [*Min]) -9/Mines (discovered 2 exits: *Mat / *Exi) -9/Exiles -8/Mines -8/Materials (discovered 2 exits: *Fac / *Sto) -8/Storage (discovered 2 exits: *Fac / Gar) -8/Garrison (discovered 3 exits: *Fac x3) -7/Factory (discovered 1 exit: [*Fac]) History --------- Turn | Location | Event 28 | -11/Junkyard | Discovered new exit (range 15) 72 | -11/Junkyard | Entered Materials 93 | -10/Materials | Central database locked down 332 | -10/Materials | Build established: Mutant 413 | -10/Materials | Discovered new exit (range 12) 520 | -10/Materials | Discovered new exit (range 12) 708 | -10/Materials | Discovered new exit (range 7) 1146 | -10/Materials | Entered Mines 1281 | -10/Mines | Discovered new exit (range 9) 1283 | -10/Mines | Learned location of Storage (-8) 1309 | -10/Mines | Joined a pair of Derelicts in attacking an 0b10 outpost 1601 | -10/Mines | Discovered new exit (range 6) 2408 | -10/Mines | Entered Materials 2408 | -9/Materials | Evolved 2 slots: Utility x2 2714 | -9/Materials | Build established: Scavenger-Mutant 2882 | -9/Materials | Discovered new exit (range 12) 3229 | -9/Materials | Discovered new exit (range 14) 3718 | -9/Materials | Entered Mines 3781 | -9/Mines | Assembled infested the area 3834 | -9/Mines | Met 8R-AWN 3854 | -9/Mines | Attacked by 8R-AWN 3976 | -9/Mines | Destroyed 8R-AWN 3981 | -9/Mines | Found Prototype Ballistic Gun 3984 | -9/Mines | Found Prototype Ballistic Gun 3988 | -9/Mines | Found Prototype Device 3988 | -9/Mines | Identified AS-neutralizer No. 17b 4008 | -9/Mines | Found Prototype Processor 4030 | -9/Mines | Found Prototype Protection 4087 | -9/Mines | Learned Materials non-interactive machine intel 4289 | -9/Mines | Build established: Mutant 4289 | -9/Mines | Discovered new exit (range 10) 4534 | -9/Mines | Discovered new exit (range 5) 4543 | -9/Mines | Entered Exiles 4543 | -9/Exiles | Attacked by the Exiles 4583 | -9/Exiles | Core integrity fell below 50% 4658 | -9/Exiles | Lost 5 parts (1p2n2w) 4716 | -9/Exiles | Identified 8R-AWN's Boregun (x2) 4908 | -9/Exiles | Build established: Scavenger-Mutant 5031 | -9/Exiles | Core integrity fell below 20% 5166 | -9/Exiles | Discovered new exit (range 14) 5200 | -9/Exiles | Entered Mines 5414 | -8/Mines | Discovered new exit (range 10) 5438 | -8/Mines | Entered Materials 5438 | -8/Materials | Evolved 2 slots: Propulsion x2 5439 | -8/Materials | Identified exit to Storage 5440 | -8/Materials | Loaded intel: 35 non-interactive machine locations 5503 | -8/Materials | Central database locked down 5993 | -8/Materials | Discovered new exit (range 9) 5997 | -8/Materials | Entered Storage 6900 | -8/Storage | Discovered new exit (range 8) 7178 | -8/Storage | Identified exit to Garrison 7178 | -8/Storage | Entered Garrison 7239 | -8/Garrison | Triggered checkpoint 7240 | -8/Garrison | Triggered checkpoint 7261 | -8/Garrison | Triggered checkpoint 7264 | -8/Garrison | Triggered checkpoint 7321 | -8/Garrison | Destroyed 10 combat bots 7417 | -8/Garrison | Discovered new exit (range 9) 7687 | -8/Garrison | Discovered new exit (range 12) 7714 | -8/Garrison | Triggered checkpoint 7969 | -8/Garrison | Discovered new exit (range 10) 8010 | -8/Garrison | Triggered checkpoint 8308 | -8/Garrison | Triggered checkpoint 8434 | -8/Garrison | Discovered new exit (range 92) 8434 | -8/Garrison | Discovered new exit (range 50) 8434 | -8/Garrison | Discovered new exit (range 57) 8684 | -8/Garrison | Installed Relay Interface Framework 8841 | -8/Garrison | Garrison Relay disabled 8896 | -8/Garrison | Entered Factory 8896 | -7/Factory | Evolved 2 slots: Utility x2 8896 | -7/Factory | Identified Exp. Targeting Computer 9117 | -7/Factory | Discovered new exit (range 4) 9464 | -7/Factory | System corruption reached 10% 9494 | -7/Factory | Lost 4 parts (1n3u) 9674 | -7/Factory | Lost 3 parts (3n) 9755 | -7/Factory | Build established: Bothacker-Mutant 9774 | -7/Factory | Self-destructed Last Messages --------------- 09737_ G-50 Soldier destroyed. 09739_ System corrupted: Matter fused (-9). 09740_ U-05 Engineer builds a Wall. 09747_ Acquired 45 matter. 09748_ Lgt. Treads destroyed. 09749_ Slug penetrates G-47 Trooper. 09755_ System corrupted: Component data lost. 09755_ Slug penetrates Wall. 09755_ Slug penetrates G-47 Trooper. 09756_ Critical hit (Burn: +37). 09758_ Slug penetrates G-47 Trooper. 09758_ G-47 Trooper destroyed. 09758_ Acquired 30 matter. 09759_ G-47 Trooper destroyed. 09760_ Slug penetrates A-02 Transporter. 09763_ Destroyed Imp. Hover Unit. 09763_ W-25 Informer knocked back. 09766_ Slug penetrates G-47 Trooper. 09766_ G-47 Trooper destroyed. 09769_ Acquired 52 matter. Map ----- +----------------------------------------------------+ | ?????????????????????????????????????????????????? | | ?????????????????????????????????????????????????? | | ?????????????????????????????????????????????????? | | ?????????????????????????????????????????????????? | | ?????????????????????????????????????????????????? | | ?????????????????????????????????????????????????? | | ?????????????????????????????????????????????????? | | ?????????????????????????????????????????????????? | | ?????????????????????????????????????????????????? | | ?????????????????????????????????????????????????? | | ??????????????????????? g ?????????????????????? | | ??????????????????????# #????????????????????? | | ??????????????????????# #????????????????????? | | ??????????????????????# g#????????????????????? | | ??????????????????????# #????????????????????? | | ??????????????????????+ #????????????????????? | | ??????????????????????# #????????????????????? | | ??????????????????????# #????????????????????? | | ??????????????????????# #???? ???????????????? | | ??????????????????????# #??? ??????????????? | | #???#???????#########?# ^^ #?? ???????????? | | ?? ???????? ! #^ #? ???????????? | | "" ? ??????"" ! + = +? #??????????? | | "Y ? "????? "" # [%* # #??????????? | | "" ? ""?????"T ; %! # #??????????? | | """??#??" """ ;o%@ ; #??????????? | | ! #??" """ ;* ######???????????????? | | """ """ #? """ # [ #????????????????????? | | """ """ #??] ??#a #????????????????????? | | """ """ #?####????# #????????????????????? | | #????????## %= #????????????????????? | | #????????## = #????????????????????? | | ????????### H###??????????????????? | | ## #+############# #??????????????????? | | * ! #??????????????????? | | = #??????????????????? | | *[ "??????????????????? | | = + ?????????????????? | | % / # ????????????????? | | # ????????????????? | | #??????????????????? | | ## ########### #??????????????????? | | ?# ????????###########??????????????????? | | ?# ????????????????????????????????????? | | ?# ???????????????????????????????????? | | ?# #??????????????????????????????????? | | ?# #??????????????????????????????????? | | ?# #??????????????????????????????????? | | ?# #??????????????????????????????????? | | ?# #??????????????????????????????????? | +----------------------------------------------------+ Best States ------------- Heat Dissipation 61 Energy Generation 18 Energy Capacity 290 Matter Stores 300 Matter Capacity 300 Sight Range 16 Terrain Scan Density 10 Armor Coverage 450 Resistance: KI 20 Core Shielding 20 Evasion (%) 40 Targeting Accuracy 12 Recoil Reduction 4 Relay Coupler Types 2 Relay Coupler Value 39 Item Schematics ----------------- None Robot Schematics ------------------ None Fabricated ------------ Nothing Alien Tech Used ----------------- None Achievements -------------- None Challenges ------------ None Game ------ Seed DecoyBiocellAutohacker Manual? 0 Play Time 00:50:12 Cumulative 292.1 hours Start 2023.02.05 @ 12:43:21 End 2023.02.18 @ 18:26:21 Sessions 5 Manual Loads 0 Difficulty Rogue Special Mode None Game No. 406 Rogue 319 Adventurer 87 Explorer 0 Win Type - Total 10 Types 5/0/3/1/1/0/0/0/0 Lore% 79 Gallery% 82 Achievement% 71 Wizard Run 0 Options --------- ASCII 0 Keyboard 1 Movement Numpad Keybinds 0 Fullscreen 1 Font 18/SmallcapsGlow Map View 76x50 Tactical HUD 1 Map Filters NONE Filters NONE Steam 1 RUN: 5bc5583c-548d-4cc4-9841-1ce22236c430